{"text_format":"3","workbook":"xlsx","n_sheets":4,"sheets":["Резюме на месечния бюджет","Приход","Разходи за персонал","Оперативни разходи"],"not_rendered":{"charts":1,"defined_names":14},"read":"whole","date_system":"1900"}

{"sheet":"Резюме на месечния бюджет","index":0,"n_rows":17,"n_cols":5,"rows_kept":17,"merged":[[1,1,1,3],[1,4,1,5],[8,1,8,4]]}
[null,"ИМЕ НА ФИРМА"]
[null,"МЕСЕЧЕН БЮДЖЕТ",null,null,"Дата"]
[]
[null,"ОБЩИ СУМИ В БЮДЖЕТА","ОЧАКВАН","ДЕЙСТВИТЕЛЕН","РАЗЛИКА"]
[null,"Приход",{"$f":"Приход[[#Totals],[ОЧАКВАН]]","v":{"v":63300,"d":"63,300.00"}},{"$f":"Приход[[#Totals],[ДЕЙСТВИТЕЛЕН]]","v":{"v":57450,"d":"57,450.00"}},{"$f":"Общо[[#This Row],[ДЕЙСТВИТЕЛЕН]]-Общо[[#This Row],[ОЧАКВАН]]","v":{"v":-5850,"d":"-5,850.00 "}}]
[null,"Разходи",{"$f":"ОперативниРазходи[[#Totals],[ОЧАКВАН]]+РазходиЗаПерсонал[[#Totals],[ОЧАКВАН]]","v":{"v":54500,"d":"54,500.00"}},{"$f":"ОперативниРазходи[[#Totals],[ДЕЙСТВИТЕЛЕН]]+РазходиЗаПерсонал[[#Totals],[ДЕЙСТВИТЕЛЕН]]","v":{"v":49630,"d":"49,630.00"}},{"$f":"Общо[[#This Row],[ДЕЙСТВИТЕЛЕН]]-Общо[[#This Row],[ОЧАКВАН]]","v":{"v":-4870,"d":"-4,870.00 "}}]
[null,"Баланс (приход минус разходи)",{"$f":"C5-C6","v":{"v":8800,"d":"8,800.00"}},{"$f":"D5-D6","v":{"v":7820,"d":"7,820.00"}},{"$f":"Общо[[#Totals],[ДЕЙСТВИТЕЛЕН]]-Общо[[#Totals],[ОЧАКВАН]]","v":{"v":-980,"d":"-980.00 "}}]
[]
[null,"Диаграмата за общ преглед на бюджета се намира в тази клетка. Най-големите 5 оперативни разхода се актуализират автоматично в таблицата \"Най-големите5разхода\" по-долу."]
[null,"КОИ СА МОИТЕ НАЙ-ГОЛЕМИ 5 ОПЕРАТИВНИ РАЗХОДА?"]
[null,"РАЗХОД","СУМА","% ОТ РАЗХОДИТЕ","15% НАМАЛЕНИЕ"]
[null,{"$f":"INDEX(ОперативниРазходи[],MATCH(Най_големите5разхода[[#This Row],[СУМА]],ОперативниРазходи[СУМА НА НАЙ-ГОЛЕМИТЕ 5],0),1)","v":"Поддръжка и ремонти"},{"$f":"LARGE(ОперативниРазходи[СУМА НА НАЙ-ГОЛЕМИТЕ 5],1)","v":{"v":4600.000017,"d":"4,600.00"}},{"$f":"Най_големите5разхода[[#This Row],[СУМА]]/$D$6","v":{"v":0.09268587582107597,"d":"9.3%"}},{"$f":"Най_големите5разхода[[#This Row],[СУМА]]*0.15","v":{"v":690.00000255,"d":"690.00"}}]
[null,{"$f":"INDEX(ОперативниРазходи[],MATCH(Най_големите5разхода[[#This Row],[СУМА]],ОперативниРазходи[СУМА НА НАЙ-ГОЛЕМИТЕ 5],0),1)","v":"Наем или ипотека"},{"$f":"LARGE(ОперативниРазходи[СУМА НА НАЙ-ГОЛЕМИТЕ 5],2)","v":{"v":4500.000015,"d":"4,500.00"}},{"$f":"Най_големите5разхода[[#This Row],[СУМА]]/$D$6","v":{"v":0.09067096544428772,"d":"9.1%"}},{"$f":"Най_големите5разхода[[#This Row],[СУМА]]*0.15","v":{"v":675.00000225,"d":"675.00"}}]
[null,{"$f":"INDEX(ОперативниРазходи[],MATCH(Най_големите5разхода[[#This Row],[СУМА]],ОперативниРазходи[СУМА НА НАЙ-ГОЛЕМИТЕ 5],0),1)","v":"Консумативи"},{"$f":"LARGE(ОперативниРазходи[СУМА НА НАЙ-ГОЛЕМИТЕ 5],3)","v":{"v":4500.000012,"d":"4,500.00"}},{"$f":"Най_големите5разхода[[#This Row],[СУМА]]/$D$6","v":{"v":0.09067096538384042,"d":"9.1%"}},{"$f":"Най_големите5разхода[[#This Row],[СУМА]]*0.15","v":{"v":675.0000018000001,"d":"675.00"}}]
[null,{"$f":"INDEX(ОперативниРазходи[],MATCH(Най_големите5разхода[[#This Row],[СУМА]],ОперативниРазходи[СУМА НА НАЙ-ГОЛЕМИТЕ 5],0),1)","v":"Данъци"},{"$f":"LARGE(ОперативниРазходи[СУМА НА НАЙ-ГОЛЕМИТЕ 5],4)","v":{"v":3200.000006,"d":"3,200.00"}},{"$f":"Най_големите5разхода[[#This Row],[СУМА]]/$D$6","v":{"v":0.06447713088857546,"d":"6.4%"}},{"$f":"Най_големите5разхода[[#This Row],[СУМА]]*0.15","v":{"v":480.00000090000003,"d":"480.00"}}]
[null,{"$f":"INDEX(ОперативниРазходи[],MATCH(Най_големите5разхода[[#This Row],[СУМА]],ОперативниРазходи[СУМА НА НАЙ-ГОЛЕМИТЕ 5],0),1)","v":"Реклама"},{"$f":"LARGE(ОперативниРазходи[СУМА НА НАЙ-ГОЛЕМИТЕ 5],5)","v":{"v":2500.000021,"d":"2,500.00"}},{"$f":"Най_големите5разхода[[#This Row],[СУМА]]/$D$6","v":{"v":0.05037275883538182,"d":"5.0%"}},{"$f":"Най_големите5разхода[[#This Row],[СУМА]]*0.15","v":{"v":375.00000314999994,"d":"375.00"}}]
[null,"Общо",{"$f":"SUBTOTAL(109,Най_големите5разхода[СУМА])","v":{"v":19300.000071000002,"d":"19,300.00"}},{"$f":"SUBTOTAL(109,Най_големите5разхода[% ОТ РАЗХОДИТЕ])","v":{"v":0.3888776963731614,"d":"38.9%"}},{"$f":"SUBTOTAL(109,Най_големите5разхода[15% НАМАЛЕНИЕ])","v":{"v":2895.0000106499997,"d":"2,895.00"}}]

{"sheet":"Приход","index":1,"n_rows":8,"n_cols":6,"rows_kept":8,"merged":[[1,1,1,3]]}
[null,{"$f":"ИМЕ_НА_ФИРМА","v":"ИМЕ НА ФИРМА"}]
[null,{"$f":"БЮДЖЕТ_Заглавие","v":"МЕСЕЧЕН БЮДЖЕТ"}]
[]
[null,"ПРИХОД","ОЧАКВАН","ДЕЙСТВИТЕЛЕН","СУМА НА НАЙ-ГОЛЕМИТЕ 5","РАЗЛИКА"]
[null,"Нетни продажби",{"v":60000,"d":"60,000.00"},{"v":54000,"d":"54,000.00"},{"$f":"Приход[[#This Row],[ДЕЙСТВИТЕЛЕН]]+(10^-6)*ROW(Приход[[#This Row],[ДЕЙСТВИТЕЛЕН]])","v":{"v":54000.000005,"d":"54,000.00"}},{"$f":"Приход[[#This Row],[ДЕЙСТВИТЕЛЕН]]-Приход[[#This Row],[ОЧАКВАН]]","v":{"v":-6000,"d":"-6,000.00 "}}]
[null,"Приход от лихви",{"v":3000,"d":"3,000.00"},{"v":3000,"d":"3,000.00"},{"$f":"Приход[[#This Row],[ДЕЙСТВИТЕЛЕН]]+(10^-6)*ROW(Приход[[#This Row],[ДЕЙСТВИТЕЛЕН]])","v":{"v":3000.000006,"d":"3,000.00"}},{"$f":"Приход[[#This Row],[ДЕЙСТВИТЕЛЕН]]-Приход[[#This Row],[ОЧАКВАН]]","v":{"v":0,"d":"0.00"}}]
[null,"Продажби на активи (печалба/загуба)",{"v":300,"d":"300.00"},{"v":450,"d":"450.00"},{"$f":"Приход[[#This Row],[ДЕЙСТВИТЕЛЕН]]+(10^-6)*ROW(Приход[[#This Row],[ДЕЙСТВИТЕЛЕН]])","v":{"v":450.000007,"d":"450.00"}},{"$f":"Приход[[#This Row],[ДЕЙСТВИТЕЛЕН]]-Приход[[#This Row],[ОЧАКВАН]]","v":{"v":150,"d":"150.00"}}]
[null,"Общ приход",{"$f":"SUBTOTAL(109,Приход[ОЧАКВАН])","v":{"v":63300,"d":"63,300.00"}},{"$f":"SUBTOTAL(109,Приход[ДЕЙСТВИТЕЛЕН])","v":{"v":57450,"d":"57,450.00"}},null,{"$f":"SUBTOTAL(109,Приход[РАЗЛИКА])","v":{"v":-5850,"d":"-5,850.00 "}}]

{"sheet":"Разходи за персонал","index":2,"n_rows":8,"n_cols":6,"rows_kept":8,"merged":[[1,1,1,3]]}
[null,{"$f":"ИМЕ_НА_ФИРМА","v":"ИМЕ НА ФИРМА"}]
[null,{"$f":"БЮДЖЕТ_Заглавие","v":"МЕСЕЧЕН БЮДЖЕТ"}]
[]
[null,"РАЗХОДИ ЗА ПЕРСОНАЛ","ОЧАКВАН","ДЕЙСТВИТЕЛЕН","СУМА НА НАЙ-ГОЛЕМИТЕ 5","РАЗЛИКА"]
[null,"Заплати",{"v":9500,"d":"9,500.00"},{"v":9600,"d":"9,600.00"},{"$f":"РазходиЗаПерсонал[[#This Row],[ДЕЙСТВИТЕЛЕН]]+(10^-6)*ROW(РазходиЗаПерсонал[[#This Row],[ДЕЙСТВИТЕЛЕН]])","v":{"v":9600.000005,"d":"9,600.00"}},{"$f":"РазходиЗаПерсонал[[#This Row],[ОЧАКВАН]]-РазходиЗаПерсонал[[#This Row],[ДЕЙСТВИТЕЛЕН]]","v":{"v":-100,"d":"-100.00 "}}]
[null,"Придобивки за служителите",{"v":4000,"d":"4,000.00"},{"v":0,"d":"0.00"},{"$f":"РазходиЗаПерсонал[[#This Row],[ДЕЙСТВИТЕЛЕН]]+(10^-6)*ROW(РазходиЗаПерсонал[[#This Row],[ДЕЙСТВИТЕЛЕН]])","v":{"v":6e-06,"d":"0.00"}},{"$f":"РазходиЗаПерсонал[[#This Row],[ОЧАКВАН]]-РазходиЗаПерсонал[[#This Row],[ДЕЙСТВИТЕЛЕН]]","v":{"v":4000,"d":"4,000.00"}}]
[null,"Комисиона",{"v":5000,"d":"5,000.00"},{"v":4500,"d":"4,500.00"},{"$f":"РазходиЗаПерсонал[[#This Row],[ДЕЙСТВИТЕЛЕН]]+(10^-6)*ROW(РазходиЗаПерсонал[[#This Row],[ДЕЙСТВИТЕЛЕН]])","v":{"v":4500.000007,"d":"4,500.00"}},{"$f":"РазходиЗаПерсонал[[#This Row],[ОЧАКВАН]]-РазходиЗаПерсонал[[#This Row],[ДЕЙСТВИТЕЛЕН]]","v":{"v":500,"d":"500.00"}}]
[null,"Общи разходи за персонал",{"$f":"SUBTOTAL(109,РазходиЗаПерсонал[ОЧАКВАН])","v":{"v":18500,"d":"18,500.00"}},{"$f":"SUBTOTAL(109,РазходиЗаПерсонал[ДЕЙСТВИТЕЛЕН])","v":{"v":14100,"d":"14,100.00"}},null,{"$f":"SUBTOTAL(109,РазходиЗаПерсонал[РАЗЛИКА])","v":{"v":4400,"d":"4,400.00"}}]

{"sheet":"Оперативни разходи","index":3,"n_rows":25,"n_cols":6,"rows_kept":25,"merged":[[1,1,1,3]]}
[null,{"$f":"ИМЕ_НА_ФИРМА","v":"ИМЕ НА ФИРМА"}]
[null,{"$f":"БЮДЖЕТ_Заглавие","v":"МЕСЕЧЕН БЮДЖЕТ"}]
[]
[null,"ОПЕРАТИВНИ РАЗХОДИ","ОЧАКВАН","ДЕЙСТВИТЕЛЕН","СУМА НА НАЙ-ГОЛЕМИТЕ 5","РАЗЛИКА"]
[null,"Амортизация",{"v":1000,"d":"1,000.00"},{"v":1000,"d":"1,000.00"},{"$f":"ОперативниРазходи[[#This Row],[ДЕЙСТВИТЕЛЕН]]+(10^-6)*ROW(ОперативниРазходи[[#This Row],[ДЕЙСТВИТЕЛЕН]])","v":{"v":1000.000005,"d":"1,000.00"}},{"$f":"ОперативниРазходи[[#This Row],[ОЧАКВАН]]-ОперативниРазходи[[#This Row],[ДЕЙСТВИТЕЛЕН]]","v":{"v":0,"d":"0.00"}}]
[null,"Данъци",{"v":3000,"d":"3,000.00"},{"v":3200,"d":"3,200.00"},{"$f":"ОперативниРазходи[[#This Row],[ДЕЙСТВИТЕЛЕН]]+(10^-6)*ROW(ОперативниРазходи[[#This Row],[ДЕЙСТВИТЕЛЕН]])","v":{"v":3200.000006,"d":"3,200.00"}},{"$f":"ОперативниРазходи[[#This Row],[ОЧАКВАН]]-ОперативниРазходи[[#This Row],[ДЕЙСТВИТЕЛЕН]]","v":{"v":-200,"d":"-200.00 "}}]
[null,"Доставка и съхранение",{"v":900,"d":"900.00"},{"v":840,"d":"840.00"},{"$f":"ОперативниРазходи[[#This Row],[ДЕЙСТВИТЕЛЕН]]+(10^-6)*ROW(ОперативниРазходи[[#This Row],[ДЕЙСТВИТЕЛЕН]])","v":{"v":840.000007,"d":"840.00"}},{"$f":"ОперативниРазходи[[#This Row],[ОЧАКВАН]]-ОперативниРазходи[[#This Row],[ДЕЙСТВИТЕЛЕН]]","v":{"v":60,"d":"60.00"}}]
[null,"Други",{"v":1000,"d":"1,000.00"},{"v":750,"d":"750.00"},{"$f":"ОперативниРазходи[[#This Row],[ДЕЙСТВИТЕЛЕН]]+(10^-6)*ROW(ОперативниРазходи[[#This Row],[ДЕЙСТВИТЕЛЕН]])","v":{"v":750.000008,"d":"750.00"}},{"$f":"ОперативниРазходи[[#This Row],[ОЧАКВАН]]-ОперативниРазходи[[#This Row],[ДЕЙСТВИТЕЛЕН]]","v":{"v":250,"d":"250.00"}}]
[null,"Застраховка",{"v":1300,"d":"1,300.00"},{"v":1275,"d":"1,275.00"},{"$f":"ОперативниРазходи[[#This Row],[ДЕЙСТВИТЕЛЕН]]+(10^-6)*ROW(ОперативниРазходи[[#This Row],[ДЕЙСТВИТЕЛЕН]])","v":{"v":1275.000009,"d":"1,275.00"}},{"$f":"ОперативниРазходи[[#This Row],[ОЧАКВАН]]-ОперативниРазходи[[#This Row],[ДЕЙСТВИТЕЛЕН]]","v":{"v":25,"d":"25.00"}}]
[null,"Канцеларски материали",{"v":800,"d":"800.00"},{"v":750,"d":"750.00"},{"$f":"ОперативниРазходи[[#This Row],[ДЕЙСТВИТЕЛЕН]]+(10^-6)*ROW(ОперативниРазходи[[#This Row],[ДЕЙСТВИТЕЛЕН]])","v":{"v":750.00001,"d":"750.00"}},{"$f":"ОперативниРазходи[[#This Row],[ОЧАКВАН]]-ОперативниРазходи[[#This Row],[ДЕЙСТВИТЕЛЕН]]","v":{"v":50,"d":"50.00"}}]
[null,"Комунални услуги",{"v":1400,"d":"1,400.00"},{"v":1385,"d":"1,385.00"},{"$f":"ОперативниРазходи[[#This Row],[ДЕЙСТВИТЕЛЕН]]+(10^-6)*ROW(ОперативниРазходи[[#This Row],[ДЕЙСТВИТЕЛЕН]])","v":{"v":1385.000011,"d":"1,385.00"}},{"$f":"ОперативниРазходи[[#This Row],[ОЧАКВАН]]-ОперативниРазходи[[#This Row],[ДЕЙСТВИТЕЛЕН]]","v":{"v":15,"d":"15.00"}}]
[null,"Консумативи",{"v":5000,"d":"5,000.00"},{"v":4500,"d":"4,500.00"},{"$f":"ОперативниРазходи[[#This Row],[ДЕЙСТВИТЕЛЕН]]+(10^-6)*ROW(ОперативниРазходи[[#This Row],[ДЕЙСТВИТЕЛЕН]])","v":{"v":4500.000012,"d":"4,500.00"}},{"$f":"ОперативниРазходи[[#This Row],[ОЧАКВАН]]-ОперативниРазходи[[#This Row],[ДЕЙСТВИТЕЛЕН]]","v":{"v":500,"d":"500.00"}}]
[null,"Лихва",{"v":2000,"d":"2,000.00"},{"v":2200,"d":"2,200.00"},{"$f":"ОперативниРазходи[[#This Row],[ДЕЙСТВИТЕЛЕН]]+(10^-6)*ROW(ОперативниРазходи[[#This Row],[ДЕЙСТВИТЕЛЕН]])","v":{"v":2200.000013,"d":"2,200.00"}},{"$f":"ОперативниРазходи[[#This Row],[ОЧАКВАН]]-ОперативниРазходи[[#This Row],[ДЕЙСТВИТЕЛЕН]]","v":{"v":-200,"d":"-200.00 "}}]
[null,"Лоши дългове",{"v":2000,"d":"2,000.00"},{"v":2000,"d":"2,000.00"},{"$f":"ОперативниРазходи[[#This Row],[ДЕЙСТВИТЕЛЕН]]+(10^-6)*ROW(ОперативниРазходи[[#This Row],[ДЕЙСТВИТЕЛЕН]])","v":{"v":2000.000014,"d":"2,000.00"}},{"$f":"ОперативниРазходи[[#This Row],[ОЧАКВАН]]-ОперативниРазходи[[#This Row],[ДЕЙСТВИТЕЛЕН]]","v":{"v":0,"d":"0.00"}}]
[null,"Наем или ипотека",{"v":4100,"d":"4,100.00"},{"v":4500,"d":"4,500.00"},{"$f":"ОперативниРазходи[[#This Row],[ДЕЙСТВИТЕЛЕН]]+(10^-6)*ROW(ОперативниРазходи[[#This Row],[ДЕЙСТВИТЕЛЕН]])","v":{"v":4500.000015,"d":"4,500.00"}},{"$f":"ОперативниРазходи[[#This Row],[ОЧАКВАН]]-ОперативниРазходи[[#This Row],[ДЕЙСТВИТЕЛЕН]]","v":{"v":-400,"d":"-400.00 "}}]
[null,"Отстъпки в брой",{"v":1500,"d":"1,500.00"},{"v":2175,"d":"2,175.00"},{"$f":"ОперативниРазходи[[#This Row],[ДЕЙСТВИТЕЛЕН]]+(10^-6)*ROW(ОперативниРазходи[[#This Row],[ДЕЙСТВИТЕЛЕН]])","v":{"v":2175.000016,"d":"2,175.00"}},{"$f":"ОперативниРазходи[[#This Row],[ОЧАКВАН]]-ОперативниРазходи[[#This Row],[ДЕЙСТВИТЕЛЕН]]","v":{"v":-675,"d":"-675.00 "}}]
[null,"Поддръжка и ремонти",{"v":4500,"d":"4,500.00"},{"v":4600,"d":"4,600.00"},{"$f":"ОперативниРазходи[[#This Row],[ДЕЙСТВИТЕЛЕН]]+(10^-6)*ROW(ОперативниРазходи[[#This Row],[ДЕЙСТВИТЕЛЕН]])","v":{"v":4600.000017,"d":"4,600.00"}},{"$f":"ОперативниРазходи[[#This Row],[ОЧАКВАН]]-ОперативниРазходи[[#This Row],[ДЕЙСТВИТЕЛЕН]]","v":{"v":-100,"d":"-100.00 "}}]
[null,"Пощенски разходи",{"v":400,"d":"400.00"},{"v":350,"d":"350.00"},{"$f":"ОперативниРазходи[[#This Row],[ДЕЙСТВИТЕЛЕН]]+(10^-6)*ROW(ОперативниРазходи[[#This Row],[ДЕЙСТВИТЕЛЕН]])","v":{"v":350.000018,"d":"350.00"}},{"$f":"ОперативниРазходи[[#This Row],[ОЧАКВАН]]-ОперативниРазходи[[#This Row],[ДЕЙСТВИТЕЛЕН]]","v":{"v":50,"d":"50.00"}}]
[null,"Правни услуги и одитиране",{"v":1000,"d":"1,000.00"},{"v":800,"d":"800.00"},{"$f":"ОперативниРазходи[[#This Row],[ДЕЙСТВИТЕЛЕН]]+(10^-6)*ROW(ОперативниРазходи[[#This Row],[ДЕЙСТВИТЕЛЕН]])","v":{"v":800.000019,"d":"800.00"}},{"$f":"ОперативниРазходи[[#This Row],[ОЧАКВАН]]-ОперативниРазходи[[#This Row],[ДЕЙСТВИТЕЛЕН]]","v":{"v":200,"d":"200.00"}}]
[null,"Разходи за доставка",{"v":2000,"d":"2,000.00"},{"v":1500,"d":"1,500.00"},{"$f":"ОперативниРазходи[[#This Row],[ДЕЙСТВИТЕЛЕН]]+(10^-6)*ROW(ОперативниРазходи[[#This Row],[ДЕЙСТВИТЕЛЕН]])","v":{"v":1500.00002,"d":"1,500.00"}},{"$f":"ОперативниРазходи[[#This Row],[ОЧАКВАН]]-ОперативниРазходи[[#This Row],[ДЕЙСТВИТЕЛЕН]]","v":{"v":500,"d":"500.00"}}]
[null,"Реклама",{"v":3000,"d":"3,000.00"},{"v":2500,"d":"2,500.00"},{"$f":"ОперативниРазходи[[#This Row],[ДЕЙСТВИТЕЛЕН]]+(10^-6)*ROW(ОперативниРазходи[[#This Row],[ДЕЙСТВИТЕЛЕН]])","v":{"v":2500.000021,"d":"2,500.00"}},{"$f":"ОперативниРазходи[[#This Row],[ОЧАКВАН]]-ОперативниРазходи[[#This Row],[ДЕЙСТВИТЕЛЕН]]","v":{"v":500,"d":"500.00"}}]
[null,"Такси и абонаменти",{"v":500,"d":"500.00"},{"v":525,"d":"525.00"},{"$f":"ОперативниРазходи[[#This Row],[ДЕЙСТВИТЕЛЕН]]+(10^-6)*ROW(ОперативниРазходи[[#This Row],[ДЕЙСТВИТЕЛЕН]])","v":{"v":525.000022,"d":"525.00"}},{"$f":"ОперативниРазходи[[#This Row],[ОЧАКВАН]]-ОперативниРазходи[[#This Row],[ДЕЙСТВИТЕЛЕН]]","v":{"v":-25,"d":"-25.00 "}}]
[null,"Телефон",{"v":250,"d":"250.00"},{"v":280,"d":"280.00"},{"$f":"ОперативниРазходи[[#This Row],[ДЕЙСТВИТЕЛЕН]]+(10^-6)*ROW(ОперативниРазходи[[#This Row],[ДЕЙСТВИТЕЛЕН]])","v":{"v":280.000023,"d":"280.00"}},{"$f":"ОперативниРазходи[[#This Row],[ОЧАКВАН]]-ОперативниРазходи[[#This Row],[ДЕЙСТВИТЕЛЕН]]","v":{"v":-30,"d":"-30.00 "}}]
[null,"Търговски разходи",{"v":350,"d":"350.00"},{"v":400,"d":"400.00"},{"$f":"ОперативниРазходи[[#This Row],[ДЕЙСТВИТЕЛЕН]]+(10^-6)*ROW(ОперативниРазходи[[#This Row],[ДЕЙСТВИТЕЛЕН]])","v":{"v":400.000024,"d":"400.00"}},{"$f":"ОперативниРазходи[[#This Row],[ОЧАКВАН]]-ОперативниРазходи[[#This Row],[ДЕЙСТВИТЕЛЕН]]","v":{"v":-50,"d":"-50.00 "}}]
[null,"Общо оперативни разходи",{"$f":"SUBTOTAL(109,ОперативниРазходи[ОЧАКВАН])","v":{"v":36000,"d":"36,000.00"}},{"$f":"SUBTOTAL(109,ОперативниРазходи[ДЕЙСТВИТЕЛЕН])","v":{"v":35530,"d":"35,530.00"}},null,{"$f":"SUBTOTAL(109,ОперативниРазходи[РАЗЛИКА])","v":{"v":470,"d":"470.00"}}]